bitfinex-derivatives/quotes_SOLF0:USTF0_20250505
["timestamp","ask_amount","ask_price","bid_price","bid_amount"]
[1746446301227,4.84085803,144.33,144.3,6.9293]
[1746446301729,4.84085803,144.33,144.28,24.36]
[1746446302230,4.84085803,144.33,144.28,31.2903]
[1746446303030,6.9295,144.31,144.28,31.2903]
[1746446303232,6.9295,144.31,144.28,6.9303]
[1746446304231,6.9295,144.31,144.29,6.93]
[1746446304424,6.9289,144.32,144.29,6.93]
[1746446305132,6.9289,144.32,144.3,6.9294]
[1746446307533,11.76925803,144.33,144.3,6.9294]
[1746446307733,11.76925803,144.33,144.31,6.9291]
[1746446307932,11.76925803,144.33,144.27,6.88925803]
[1746446309032,6.929,144.32,144.3,6.9292]
[1746446309531,11.76925803,144.33,144.31,6.9291]
[1746446309931,6.9284,144.33,144.31,6.9291]
[1746446313838,24.36,144.37,144.29,29.20085803]
[1746446314032,29.20085803,144.37,144.29,29.20085803]
[1746446314534,6.9274,144.35,144.33,6.9278]
[1746446314937,29.20085803,144.37,144.31,4.84085803]
[1746446315130,6.9269,144.36,144.34,6.9274]
[1746446316530,29.20085803,144.37,144.31,4.84085803]
[1746446316938,6.9269,144.36,144.34,6.9276]
[1746446317232,29.20085803,144.37,144.31,4.84085803]
[1746446317738,6.9274,144.35,144.33,6.9278]
[1746446320638,29.20085803,144.37,144.31,4.84085803]
[1746446321239,6.9272,144.35,144.33,6.928]
[1746446323341,31.2865,144.37,144.31,4.84085803]
[1746446323538,6.9265,144.37,144.33,4.84085803]
[1746446323739,4.84085803,144.39,144.31,4.84085803]
[1746446323935,6.9277,144.34,144.32,6.9285]
[1746446324139,4.84085803,144.37,144.32,6.9285]
[1746446324644,6.9277,144.34,144.32,6.9285]
[1746446324936,4.84085803,144.37,144.31,6.9289]
[1746446325140,372.8483,144.42,144.29,24.34]
[1746446325141,4.84085803,144.35,144.29,24.34]
[1746446325331,29.18085803,144.35,144.29,24.34]
[1746446325731,29.18085803,144.35,144.3,6.9294]
[1746446326243,6.9285,144.33,144.3,6.9294]
[1746446327145,6.9289,144.32,144.29,6.9298]
[1746446329944,6.9291,144.31,144.29,6.9298]
[1746446331342,6.9298,144.3,144.28,6.9303]
[1746446331544,4.84085803,144.33,144.28,6.9303]
[1746446332444,6.9295,144.31,144.28,6.9303]
[1746446332641,4.84085803,144.33,144.28,6.9303]
[1746446332841,4.84085803,144.31,144.28,6.9303]
[1746446333146,6.9297,144.3,144.28,6.9303]
[1746446334049,11.77025803,144.31,144.28,6.9303]
[1746446334547,6.9294,144.31,144.28,6.9303]
[1746446334846,6.9294,144.31,144.28,7.9303]
[1746446339743,6.9294,144.31,144.29,6.9301]
[1746446340349,6.9294,144.31,144.28,7.9304]
[1746446341149,6.9289,144.32,144.29,6.93]
[1746446341444,4.84085803,144.33,144.29,6.93]
[1746446341749,6.9294,144.31,144.29,6.93]
[1746446341950,4.84085803,144.33,144.3,6.9295]
[1746446342250,6.9289,144.32,144.28,1.0]
[1746446343249,6.9289,144.32,144.29,6.9298]
[1746446345553,6.9292,144.31,144.29,6.9298]
[1746446348554,6.9289,144.32,144.3,6.9296]
[1746446348850,4.84085803,144.33,144.28,1.0]
[1746446349253,6.9289,144.32,144.29,6.9298]
[1746446349453,6.9289,144.32,144.28,1.0]
[1746446350053,6.9289,144.32,144.29,6.93]
[1746446350548,6.9289,144.32,144.28,1.0]
[1746446350549,6.9289,144.32,144.3,6.9296]
[1746446351254,6.9291,144.31,144.29,6.9298]
[1746446352257,24.34,144.35,144.28,30.16085803]
[1746446352448,29.18085803,144.35,144.28,32.20245803]
[1746446352850,6.928,144.34,144.32,6.9286]
[1746446353154,29.18085803,144.35,144.3,4.84085803]
[1746446353651,36.10825803,144.35,144.3,4.84085803]
[1746446354153,36.10825803,144.35,144.32,6.9283]
[1746446354353,6.9277,144.34,144.32,6.9283]
[1746446356556,4.84085803,144.35,144.28,27.3616]
[1746446356748,24.32,144.38,144.28,27.3616]
[1746446356749,4.84085803,144.31,144.28,1.0]
[1746446357456,6.9296,144.3,144.28,1.0]
[1746446358657,6.9301,144.29,144.28,1.0]
[1746446370664,6.9315,144.26,144.25,3.0]
[1746446372562,31.2715,144.26,144.25,3.0]
[1746446376366,31.2715,144.26,144.21,1.0]
[1746446376367,6.9332,144.23,144.21,1.0]
[1746446378866,6.9335,144.22,144.21,1.0]
[1746446379360,6.9332,144.23,144.21,1.0]
[1746446379564,24.34,144.26,144.21,7.9337]
[1746446379759,4.84667032,144.25,144.21,7.9337]
[1746446379959,6.933,144.23,144.21,1.0]
[1746446380455,6.9327,144.24,144.21,1.0]
[1746446380759,6.9327,144.24,144.21,7.9337]
[1746446381967,24.34,144.26,144.21,5.84667032]
[1746446382670,24.32,144.29,144.23,4.84667032]
[1746446383065,6.9309,144.28,144.25,6.9317]
[1746446383268,24.32,144.29,144.25,4.84667032]
[1746446383459,4.84667032,144.31,144.25,4.84667032]
[1746446383767,4.84667032,144.31,144.27,6.9308]
[1746446384073,6.9299,144.3,144.27,6.9308]
[1746446384465,4.84667032,144.31,144.27,6.9308]
[1746446384669,4.84667032,144.31,144.26,6.9313]
[1746446384871,6.9305,144.29,144.26,6.9313]
[1746446385169,4.84667032,144.29,144.25,6.9319]
[1746446385471,4.84667032,144.29,144.22,24.32]
[1746446385663,4.84667032,144.27,144.23,6.9328]
[1746446385860,7.57043567,144.3,144.22,24.32]
[1746446386163,6.9325,144.24,144.22,24.32]
[1746446386571,6.933,144.23,144.22,24.32]
[1746446386770,6.933,144.23,144.21,1.0]
[1746446387071,6.933,144.23,144.21,7.9336]
[1746446387273,6.9327,144.24,144.21,7.9336]
[1746446387468,24.32,144.28,144.21,7.9336]
[1746446388773,6.9329,144.24,144.21,7.9336]
[1746446389075,6.9329,144.24,144.22,6.9334]
[1746446389676,6.9329,144.24,144.21,7.9337]
[1746446390477,6.933,144.23,144.21,7.9337]
[1746446390778,7.57043567,144.27,144.21,1.0]
[1746446391077,6.9335,144.22,144.21,1.0]
[1746446394681,6.9332,144.23,144.21,1.0]
[1746446395681,6.9332,144.23,144.21,7.9338]
[1746446395876,6.9327,144.24,144.21,1.0]
[1746446396283,7.57043567,144.27,144.21,7.9337]
[1746446396482,6.9331,144.23,144.21,7.9337]
[1746446396982,6.9331,144.23,144.21,8.9337]
[1746446397178,6.9335,144.22,144.21,2.0]
[1746446397675,7.57043567,144.27,144.21,2.0]
[1746446397873,6.9332,144.23,144.21,2.0]
[1746446398379,6.9335,144.22,144.21,2.0]
[1746446400285,6.9332,144.23,144.21,2.0]
[1746446400786,6.9335,144.22,144.21,2.0]
[1746446401286,7.57043567,144.27,144.21,2.0]
[1746446401487,6.9332,144.23,144.21,2.0]
[1746446402781,6.9328,144.24,144.21,8.9336]
[1746446402985,24.32,144.28,144.21,2.0]
[1746446403280,6.9321,144.25,144.23,6.9327]
[1746446403484,31.89043567,144.28,144.21,2.0]
[1746446403887,6.9333,144.23,144.21,2.0]
[1746446404185,31.89043567,144.28,144.21,2.0]
[1746446404384,6.933,144.23,144.21,2.0]
[1746446406187,6.9335,144.22,144.21,2.0]
[1746446406889,6.9332,144.23,144.21,2.0]
[1746446408087,6.9332,144.23,144.21,8.9338]
[1746446408291,6.9327,144.24,144.21,2.0]
[1746446408789,31.89043567,144.28,144.21,2.0]
[1746446409189,6.9334,144.23,144.21,2.0]
[1746446410494,6.9335,144.22,144.21,2.0]
[1746446410894,31.89043567,144.28,144.21,2.0]
[1746446411192,6.9334,144.23,144.21,2.0]
[1746446412191,6.9327,144.24,144.21,8.9339]
[1746446412390,6.9327,144.24,144.21,2.0]
[1746446412889,6.9327,144.24,144.21,8.9336]
[1746446413591,24.32,144.28,144.21,2.0]
[1746446413893,6.9318,144.26,144.22,4.0254]
[1746446414195,24.32,144.28,144.22,1.9802]
[1746446415099,6.9321,144.25,144.22,8.9133]
[1746446415701,6.9326,144.24,144.22,8.9133]
[1746446416199,6.9326,144.24,144.22,1.9802]
[1746446417198,6.9326,144.24,144.22,8.9136]
[1746446417693,6.933,144.23,144.21,2.0]
[1746446417893,24.32,144.28,144.21,2.0]
[1746446418099,6.9322,144.25,144.21,2.0]
[1746446418299,24.32,144.28,144.22,6.9331]
[1746446418793,6.9324,144.25,144.22,6.9331]
[1746446419902,6.9324,144.25,144.23,6.9329]
[1746446421199,24.32,144.28,144.21,2.0]
[1746446421402,7.57043567,144.26,144.21,2.0]
[1746446422003,6.9335,144.22,144.21,2.0]
[1746446422196,7.57043567,144.23,144.17,2.032]
[1746446422401,7.57043567,144.23,144.15,26.4094]
[1746446422901,7.57043567,144.23,144.15,24.42]
[1746446423290,7.57043567,144.23,144.16,6.9361]
[1746446423698,6.9352,144.19,144.16,6.9361]
[1746446423902,7.57043567,144.23,144.15,24.42]
[1746446424196,6.9342,144.21,144.15,24.42]
[1746446424702,6.9343,144.21,144.15,24.42]
[1746446425002,6.9343,144.21,144.18,6.9351]
[1746446425599,6.9345,144.2,144.18,6.9351]
[1746446426105,6.9345,144.2,144.15,24.42]
[1746446426299,32.01043567,144.2,144.13,2.1396]
[1746446426494,32.01043567,144.2,144.14,6.937]
[1746446426904,6.9366,144.16,144.12,26.5598]
[1746446427103,32.01043567,144.2,144.14,6.9372]
[1746446427405,6.9357,144.18,144.1,112.00370435]
[1746446427606,6.9357,144.18,144.15,6.9365]
[1746446427806,0.81,144.18,144.15,6.9365]
[1746446428104,0.81,144.18,144.15,6.9366]
[1746446428305,0.81,144.18,144.1,112.00370435]
[1746446428711,0.81,144.18,144.14,6.9369]
[1746446428712,6.9362,144.17,144.14,6.9369]
[1746446429208,6.9362,144.17,144.1,112.00370435]
[1746446429809,6.9362,144.17,144.14,6.9371]
[1746446430010,4.9,144.18,144.1,112.00370435]
[1746446430606,6.9373,144.15,144.12,6.938]
[1746446431813,6.9374,144.14,144.12,6.938]
[1746446432014,4.09,144.18,144.11,6.9386]
[1746446432213,7.57043567,144.17,144.1,24.44]
[1746446432419,24.44,144.16,144.09,2.1285]
[1746446432713,24.44,144.16,144.08,4.0484]
[1746446432914,6.9375,144.14,144.08,4.0484]
[1746446433114,24.44,144.16,144.12,6.938]
[1746446433813,6.9371,144.15,144.12,6.938]
[1746446434215,24.44,144.16,144.09,2.0216]
[1746446434411,6.9372,144.15,144.09,2.0216]
[1746446434712,6.9372,144.15,144.12,6.938]
[1746446434914,6.9375,144.14,144.09,2.0216]
[1746446435212,6.9375,144.14,144.11,6.9384]
[1746446435612,6.9379,144.13,144.09,8.961]
[1746446436010,24.44,144.16,144.09,2.0216]
[1746446436215,24.44,144.16,144.1,6.939]
[1746446436418,24.44,144.16,144.09,2.0216]
[1746446436613,6.9386,144.12,144.09,8.961]
[1746446437017,24.44,144.16,144.09,2.0216]
[1746446437616,6.939,144.11,144.09,2.0216]
[1746446438315,24.44,144.16,144.09,2.0216]
[1746446438617,32.01043567,144.16,144.09,2.0216]
[1746446438913,6.9387,144.12,144.09,2.0216]
[1746446439114,6.9387,144.12,144.09,8.9611]
[1746446439313,32.01043567,144.16,144.09,8.9611]
[1746446439615,6.939,144.11,144.09,2.0216]
[1746446440216,6.9385,144.12,144.09,8.961]
[1746446441811,32.01043567,144.16,144.09,2.0216]
[1746446442218,6.9386,144.12,144.09,8.961]
[1746446446316,6.9388,144.11,144.09,8.961]
[1746446448015,6.9385,144.12,144.1,6.9392]
[1746446448314,32.01043567,144.16,144.09,2.0216]
[1746446448519,6.9387,144.12,144.09,2.0216]
[1746446449114,6.939,144.11,144.09,2.0216]
[1746446449320,6.939,144.11,144.09,8.961]
[1746446449621,6.939,144.11,144.09,2.0216]
[1746446449820,6.9392,144.1,144.09,2.0216]
[1746446450021,6.9392,144.1,144.08,10.9884]
[1746446450223,6.9392,144.11,144.08,10.9884]
[1746446450424,4.89,144.15,144.08,10.9884]
[1746446450922,6.9393,144.1,144.08,10.9884]
[1746446452318,6.9397,144.09,144.08,4.0484]
[1746446452626,6.9397,144.09,144.07,32.3804]
[1746446454524,6.9397,144.09,144.07,25.44]
[1746446454824,24.64,144.12,144.07,25.44]
[1746446455220,24.64,144.12,144.07,1.0]
[1746446455421,6.9402,144.08,144.07,1.0]
[1746446456921,24.66,144.08,143.99,574.16]
[1746446457326,24.66,144.08,144.02,6.943]
[1746446457626,6.9421,144.05,144.02,6.943]
[1746446457924,7.57043567,144.07,144.01,6.9433]
[1746446458526,6.9423,144.04,144.01,6.9433]
[1746446459427,6.9418,144.05,144.02,6.9431]
[1746446459621,6.9418,144.05,143.99,24.66]
[1746446460025,6.9413,144.06,143.99,24.66]
[1746446460327,24.66,144.08,144.0,4.0311]
[1746446460518,24.66,144.08,144.0,6.1911]
[1746446460718,24.66,144.11,144.0,6.1911]
[1746446461127,24.66,144.11,144.06,6.9411]
[1746446462225,6.9402,144.08,144.06,6.9411]
[1746446462926,6.94,144.09,144.07,6.9406]
[1746446463826,6.9402,144.08,144.06,6.9409]
[1746446464023,6.9402,144.08,144.03,24.66]
[1746446464224,24.66,144.11,144.03,24.66]
[1746446464729,7.57043567,144.08,144.0,30.8511]
[1746446465021,6.942,144.05,144.02,6.9428]
[1746446465227,24.66,144.07,144.02,6.9428]
[1746446465531,24.66,144.07,144.01,6.9434]
[1746446465828,6.9425,144.04,144.01,6.9434]
[1746446466828,6.9427,144.03,144.01,6.9434]
[1746446467226,6.9427,144.03,144.0,37.7949]
[1746446467429,6.9427,144.03,144.0,35.6349]
[1746446468136,6.9427,144.03,144.01,6.9435]
[1746446468537,6.9427,144.03,144.0,4.0311]
[1746446468727,6.9427,144.03,144.0,10.9749]
[1746446469331,6.9427,144.03,144.01,6.9435]
[1746446469731,6.9423,144.04,144.0,4.0311]
[1746446469929,24.66,144.07,144.02,6.943]
[1746446470130,24.66,144.07,144.0,4.0311]
[1746446470325,6.9418,144.05,144.01,2.0122]
[1746446470630,24.66,144.07,144.01,2.0122]
[1746446471229,6.9414,144.06,144.03,6.9422]
[1746446471529,6.9414,144.06,144.01,2.0122]
[1746446471932,6.9414,144.06,144.04,6.9421]
[1746446472730,31.6008,144.07,144.05,6.9416]
[1746446472927,0.81,144.09,144.02,32.39043567]
[1746446473434,7.7501,144.09,144.07,6.9404]
[1746446474533,7.7501,144.09,144.06,6.9409]
[1746446474722,0.81,144.09,144.02,24.82]
[1746446475233,7.7499,144.09,144.02,24.82]
[1746446475635,26.0199,144.09,144.07,6.9404]
[1746446475832,26.0199,144.09,144.02,24.82]
[1746446476436,26.0199,144.09,144.07,6.9404]
[1746446476630,19.08,144.09,144.02,24.82]
[1746446476834,18.27,144.09,144.03,7.57043567]
[1746446477437,18.27,144.09,144.08,6.9402]
[1746446477937,25.2097,144.09,144.07,6.9404]
[1746446478135,18.27,144.09,144.07,6.9404]
[1746446478335,4.08,144.09,144.07,6.9404]
[1746446478535,6.9403,144.08,144.06,31.761]
[1746446480036,32.39043567,144.13,144.06,31.761]
[1746446480230,32.39043567,144.13,144.06,6.941]
[1746446480435,0.81,144.12,144.02,24.82]
[1746446480736,6.9412,144.06,144.02,24.82]
[1746446480936,0.81,144.12,144.02,24.82]
[1746446481129,6.9406,144.08,144.02,24.82]
[1746446481330,11.46,144.12,144.05,6.9414]
[1746446481535,6.9399,144.09,144.02,24.82]
[1746446481731,11.46,144.12,144.02,24.82]
[1746446482133,6.9404,144.08,144.02,24.82]
[1746446482330,15.54,144.12,144.02,24.82]
[1746446482729,7.57043567,144.08,144.02,24.82]
[1746446483339,24.82,144.09,144.02,24.82]
[1746446483740,6.9407,144.07,144.02,24.82]
[1746446483930,24.82,144.09,144.02,24.82]
[1746446484432,6.9405,144.08,144.05,6.9414]
[1746446485239,6.9407,144.07,144.05,6.9414]
[1746446485446,24.82,144.09,144.02,24.82]
[1746446485742,6.9417,144.05,144.02,24.82]
[1746446485929,12.14256135,144.08,144.0,4.0311]
[1746446486335,6.9421,144.05,144.0,4.0311]
[1746446486536,12.14256135,144.08,144.02,6.9428]
[1746446487045,24.82,144.09,144.0,4.0311]
[1746446487446,6.9426,144.04,144.01,6.9434]
[1746446487741,6.9426,144.04,144.0,4.0311]
[1746446488043,6.9426,144.04,144.01,6.9435]
[1746446490147,24.82,144.09,144.0,4.0311]
[1746446490444,6.9403,144.08,144.01,1.9988]
[1746446490639,6.9403,144.08,144.02,24.82]
[1746446490844,24.82,144.09,144.02,24.82]
[1746446491044,6.9396,144.1,144.02,24.82]
[1746446491245,40.36,144.12,144.02,24.82]
[1746446491641,6.9391,144.11,144.08,6.9398]
[1746446491842,15.54,144.12,144.06,24.82]
[1746446492047,15.54,144.12,144.07,30.9865]
[1746446492250,15.54,144.12,144.11,6.9387]
[1746446492445,24.82,144.18,144.07,43.12906135]
[1746446492851,6.9364,144.16,144.07,43.12906135]
[1746446493246,24.82,144.18,144.07,43.12906135]
[1746446493448,6.9364,144.16,144.07,43.12906135]
[1746446494048,6.936,144.17,144.14,6.9373]
[1746446494446,24.82,144.18,144.11,24.82]
[1746446494748,31.7556,144.18,144.15,6.9367]
[1746446494949,6.9356,144.18,144.15,6.9367]
[1746446495347,6.9359,144.17,144.14,6.9371]
[1746446495852,24.82,144.21,144.11,24.82]
[1746446496450,39.23,144.21,144.11,24.82]
[1746446496654,12.14256135,144.2,144.09,24.8]
[1746446496953,12.14256135,144.2,144.1,6.9389]
[1746446497457,12.14256135,144.2,144.09,24.8]
[1746446497756,14.41,144.21,144.09,24.8]
[1746446497948,39.21,144.21,144.09,24.8]
[1746446498148,6.9356,144.18,144.15,6.9368]
[1746446499755,39.21,144.21,144.13,24.8]
[1746446499955,51.35256135,144.21,144.13,24.8]
[1746446500364,6.9364,144.16,144.13,31.7375]
[1746446501458,6.9364,144.16,144.14,6.9373]
[1746446501756,51.35256135,144.21,144.13,24.8]
[1746446501947,51.35256135,144.21,144.16,6.9362]
[1746446502152,6.9352,144.19,144.16,6.9362]
[1746446503357,6.9354,144.18,144.16,6.9362]
[1746446503558,39.21,144.21,144.13,24.8]
[1746446503753,51.35256135,144.21,144.13,24.8]
[1746446503956,6.9367,144.16,144.13,31.7376]
[1746446504461,6.9368,144.15,144.13,31.7376]
[1746446504859,6.9368,144.15,144.13,24.8]
[1746446505260,51.35256135,144.21,144.1,25.04]
[1746446505458,51.35256135,144.21,144.12,6.9382]
[1746446505654,6.9366,144.16,144.1,25.04]
[1746446505963,51.35256135,144.21,144.12,6.938]
[1746446506261,6.9369,144.15,144.12,6.938]
[1746446506666,51.35256135,144.21,144.13,6.9376]
[1746446506852,6.9364,144.16,144.13,6.9376]
[1746446507360,6.9369,144.15,144.12,6.938]
[1746446507757,6.9369,144.15,144.1,25.04]
[1746446507962,6.9366,144.16,144.1,25.04]
[1746446508264,51.35256135,144.21,144.1,25.04]
[1746446508453,6.9369,144.15,144.12,6.938]
[1746446510868,6.9374,144.14,144.12,6.938]
[1746446511165,25.04,144.17,144.1,25.04]
[1746446511365,6.9381,144.13,144.1,25.04]
[1746446511773,25.04,144.17,144.11,6.9385]
[1746446512068,25.04,144.17,144.1,25.04]
[1746446512670,6.9372,144.15,144.1,25.04]
[1746446512967,25.04,144.17,144.1,25.04]
[1746446513162,6.9366,144.16,144.1,25.04]
[1746446513359,6.9366,144.16,144.13,6.9375]
[1746446513869,6.9364,144.16,144.13,6.9375]
[1746446514074,25.04,144.17,144.13,6.9375]
[1746446514772,6.9369,144.15,144.13,6.9375]
[1746446515173,25.04,144.17,144.13,6.9375]
[1746446515379,6.9364,144.16,144.14,6.9373]
[1746446516072,6.9361,144.17,144.14,6.9373]
[1746446516374,25.04,144.2,144.14,6.9373]
[1746446517072,6.9366,144.16,144.14,6.9373]
[1746446517272,25.04,144.2,144.1,25.04]
[1746446517474,12.13153352,144.18,144.07,6.1665]
[1746446517773,6.939,144.11,144.09,6.9397]
[1746446518273,6.9396,144.1,144.07,38.1468]
[1746446518475,6.9396,144.1,144.07,31.2065]
[1746446518673,37.17153352,144.15,144.01,563.6667]
[1746446518873,6.4282,144.14,144.02,31.1056]
[1746446519074,6.4282,144.14,144.07,6.9407]
[1746446519270,14.06,144.13,144.02,31.1056]
[1746446519475,6.9403,144.08,144.06,6.9409]
[1746446519868,14.06,144.13,144.02,31.1056]
[1746446519869,12.13153352,144.12,144.02,31.1056]
[1746446520071,25.04,144.11,144.05,6.9415]
[1746446520272,25.04,144.11,144.03,25.04]
[1746446521279,6.939,144.11,144.03,25.04]
[1746446521579,6.939,144.11,144.07,1.0]
[1746446521775,6.939,144.11,144.07,26.04]
[1746446522074,6.9385,144.12,144.09,6.9396]
[1746446522472,14.06,144.13,144.07,26.04]
[1746446523084,14.06,144.13,144.07,1.0]
[1746446523273,6.94,144.09,144.07,1.0]
[1746446523470,14.06,144.13,144.07,1.0]
[1746446523784,6.9396,144.1,144.07,7.9404]
[1746446524079,6.9396,144.1,144.07,1.0]
[1746446524280,14.06,144.13,144.07,1.0]
[1746446524580,6.939,144.11,144.07,1.0]
[1746446524773,14.06,144.13,144.07,1.0]
[1746446524975,6.9385,144.12,144.09,6.9394]
[1746446525681,6.9385,144.12,144.1,6.9391]
[1746446525983,20.998,144.13,144.1,6.9391]
[1746446526180,14.06,144.13,144.1,6.9391]
[1746446526383,6.9385,144.12,144.09,6.9395]
[1746446526682,6.9385,144.12,144.07,1.0]
[1746446526983,6.9385,144.12,144.1,6.939]
[1746446527283,20.998,144.13,144.1,6.939]
[1746446527680,14.06,144.13,144.09,6.9395]
[1746446527881,14.06,144.13,144.07,1.0]
[1746446528586,6.9395,144.1,144.07,1.0]
[1746446528785,14.06,144.13,144.07,1.0]
[1746446529580,12.13153352,144.12,143.9,405.40290054]
[1746446529884,12.13153352,144.09,144.0,6.9438]
[1746446530075,29.1771,144.08,144.0,6.9438]
[1746446530279,31.2108,144.08,144.0,6.9438]
[1746446530482,31.2108,144.08,143.99,6.9443]
[1746446530681,31.2108,144.08,143.97,31.2661]
[1746446530881,31.2108,144.08,144.0,6.9438]
[1746446531190,6.9429,144.03,144.0,6.9438]
[1746446531887,6.9423,144.04,144.01,6.9434]
[1746446532089,6.9423,144.04,143.97,31.2661]
[1746446532388,6.9423,144.04,144.01,6.9434]
[1746446532589,31.2108,144.08,143.97,31.2661]
[1746446532781,25.06,144.08,143.97,31.2661]
[1746446532978,32.0004,144.08,144.05,6.9416]
[1746446533683,6.9408,144.07,144.05,6.9416]
[1746446533883,25.06,144.08,144.04,6.9419]
[1746446534082,35.48,144.08,144.04,6.9419]
[1746446534878,35.48,144.08,144.02,31.9828]
[1746446535384,6.9419,144.05,144.02,31.9828]
[1746446536387,35.48,144.08,144.02,25.04]
[1746446536788,35.48,144.08,144.01,6.9431]
[1746446536986,35.48,144.08,143.99,25.04]
[1746446537487,6.147,144.07,143.99,25.04]
[1746446538382,6.9429,144.03,144.0,6.9439]
[1746446538692,6.944,144.0,143.95,2.1408]
[1746446538884,25.04,144.04,143.95,2.1408]
[1746446538885,25.04,144.04,143.96,25.04]
[1746446539290,6.9439,144.01,143.98,6.9447]
[1746446540590,6.9433,144.02,143.99,6.9445]
[1746446540990,6.9433,144.02,143.96,25.04]
[1746446541789,6.9433,144.02,143.99,6.9442]
[1746446542090,6.9436,144.01,143.99,6.9442]
[1746446542790,6.9436,144.01,143.98,6.9449]
[1746446542993,6.9433,144.02,143.96,25.04]
[1746446543386,25.04,144.04,143.99,6.9441]
[1746446544291,6.9428,144.03,144.0,6.944]
[1746446544593,25.04,144.04,143.96,25.04]
[1746446544889,6.9433,144.02,143.96,25.04]
[1746446545093,25.04,144.04,143.96,25.04]
[1746446545290,31.207,144.07,143.96,25.04]
[1746446545490,6.9419,144.05,143.96,25.04]
[1746446546088,25.06,144.07,143.96,25.04]
[1746446546391,10.42,144.08,143.97,13.8909]
[1746446546988,6.9422,144.04,143.96,25.04]
[1746446547695,6.9422,144.04,144.01,6.9433]
[1746446547991,6.9427,144.03,144.01,6.9433]
[1746446549597,6.9427,144.03,144.0,32.0038]
[1746446549800,6.9427,144.03,143.95,2.1408]
[1746446549801,6.9431,144.02,143.95,2.1408]
[1746446549990,25.06,144.06,143.96,25.06]
[1746446550190,25.06,144.06,143.99,6.9445]
[1746446550696,6.9435,144.02,143.99,6.9445]
[1746446552892,6.9436,144.01,143.99,6.9445]
[1746446553296,25.06,144.06,143.99,6.9445]
[1746446553492,6.943,144.03,143.96,25.06]
[1746446553697,25.06,144.06,144.0,6.9439]
[1746446553896,25.06,144.06,143.96,25.06]
[1746446554098,6.9434,144.02,143.99,6.9443]
[1746446554699,6.9429,144.03,144.0,6.9439]
[1746446555097,25.06,144.06,144.0,6.9439]
[1746446555298,25.06,144.06,143.96,25.06]
[1746446555498,6.9433,144.02,143.99,6.9441]
[1746446556098,25.06,144.06,143.96,25.06]
[1746446557202,32.0015,144.06,144.03,6.9425]
[1746446557402,10.42,144.08,144.0,25.06]
[1746446557703,10.42,144.08,144.01,31.2257]
[1746446558909,10.42,144.08,144.07,6.9407]
[1746446559402,25.06,144.15,144.05,25.06]
[1746446559901,6.938,144.13,144.1,6.9391]
[1746446560407,6.9383,144.12,144.09,6.9393]
[1746446560699,25.06,144.15,144.05,25.06]
[1746446561498,6.939,144.11,144.05,25.06]
[1746446562203,6.9385,144.12,144.05,25.06]
[1746446562702,19.0285,144.12,144.08,6.9399]
[1746446562905,6.9388,144.11,144.08,6.9399]
[1746446563205,12.09,144.12,144.05,25.06]
[1746446564099,12.09,144.12,144.11,6.9387]